bitfinex/quotes_ETHUSD_20250526
["timestamp","ask_amount","ask_price","bid_price","bid_amount"]
[1748233852466,0.36449217,2561.3,2561.0,3.898]
[1748233853405,0.36449217,2561.2,2561.0,3.898]
[1748233853609,0.36449217,2561.2,2561.1,0.7826]
[1748233854277,8.36456086,2561.7,2561.1,0.7826]
[1748233854703,8.0,2561.7,2561.1,1.24785428]
[1748233855098,0.36454913,2561.6,2561.1,1.24785428]
[1748233856266,8.0,2561.7,2561.3,0.8]
[1748233856506,8.0,2561.7,2561.4,3.898]
[1748233858679,0.36433785,2561.6,2561.4,3.898]
[1748233859580,8.0,2561.7,2561.4,3.898]
[1748233859782,8.0,2561.7,2561.5,0.8325]
[1748233860016,3.01282006,2561.8,2561.5,0.8325]
[1748233860320,0.82643474,2561.9,2561.5,0.8325]
[1748233860914,0.36427599,2561.8,2561.5,0.8325]
[1748233861291,0.36427599,2561.8,2561.6,4.075]
[1748233861473,0.36427599,2561.8,2561.7,3.897]
[1748233862003,0.0796584,2561.9,2561.7,3.897]
[1748233876962,0.0796584,2561.9,2561.6,4.075]
[1748233877260,0.0796584,2561.9,2561.8,3.897]
[1748233878260,0.44360588,2561.9,2561.8,3.897]
[1748233878954,0.44360588,2561.9,2561.5,0.8325]
[1748233879268,3.01282006,2561.7,2561.3,1.6159]
[1748233879414,3.01282006,2561.7,2561.5,4.075]
[1748233880079,0.36394748,2561.6,2561.1,1.27165428]
[1748233880270,0.36394748,2561.6,2561.2,7.972]
[1748233880925,0.36394748,2561.6,2561.3,3.897]
[1748233881152,3.01282006,2561.7,2561.3,3.897]
[1748233882939,3.01282006,2561.7,2561.3,4.7035]
[1748233883144,0.36445019,2561.6,2561.3,4.7035]
[1748233884165,8.0,2561.8,2561.3,4.7035]
[1748233885165,0.36459669,2561.7,2561.5,0.8]
[1748233886384,0.36459669,2561.6,2561.5,0.8]
[1748233886664,9.15889669,2561.6,2561.5,3.897]
[1748233886863,10.74069003,2561.6,2561.1,0.46525428]
[1748233887053,3.01282006,2561.4,2561.2,7.972]
[1748233887250,3.01282006,2561.4,2561.2,4.075]
[1748233887436,1.15889669,2561.3,2561.2,4.075]
[1748233887642,9.15889669,2561.3,2561.2,3.897]
[1748233887952,10.37606837,2561.3,2561.2,3.897]
[1748233888125,10.37606837,2561.3,2560.8,0.46525428]
[1748233888326,3.01282006,2561.0,2560.9,7.972]
[1748233888549,3.01282006,2561.0,2560.9,4.075]
[1748233888776,11.77702006,2561.0,2560.9,7.972]
[1748233888965,13.34517828,2561.0,2560.9,7.972]
[1748233889289,13.70977497,2561.0,2560.9,7.972]
[1748233889425,13.70528197,2561.0,2560.9,7.972]
[1748233890189,8.0,2560.9,2560.7,12.493]
[1748233890368,11.01282006,2560.9,2560.8,3.897]
[1748233891077,11.37741675,2560.9,2560.8,3.897]
[1748233891624,0.36459669,2560.9,2560.8,3.897]
[1748233892467,8.7642,2561.0,2560.8,3.897]
[1748233892666,9.94190201,2561.0,2560.8,3.897]
[1748233893447,3.01282006,2560.9,2560.7,8.418]
[1748233893648,3.01282006,2560.9,2560.7,3.898]
[1748233898282,8.0,2561.1,2560.7,3.898]
[1748233898283,11.01282006,2561.1,2560.7,3.898]
[1748233898461,12.31148923,2561.1,2560.7,3.898]
[1748233900363,11.01282006,2561.1,2560.7,3.898]
[1748233900571,3.01282006,2561.3,2560.7,3.898]
[1748233900798,3.01282006,2561.3,2560.8,0.8158]
[1748233900984,8.806,2561.4,2560.8,0.8158]
[1748233901165,8.0,2561.5,2560.8,0.8158]
[1748233901372,3.01282006,2561.6,2560.8,0.8158]
[1748233901887,2.81282006,2561.6,2560.8,0.8158]
[1748233905396,3.01282006,2561.0,2560.9,7.972]
[1748233906282,3.01282006,2561.2,2560.6,0.46525428]
[1748233906488,3.37609695,2561.2,2560.9,3.898]
[1748233906685,3.37609695,2561.2,2561.0,0.7779]
[1748233906686,0.36327689,2561.2,2561.0,0.7779]
[1748233907201,0.36327689,2561.2,2560.9,3.898]
[1748233907604,3.01282006,2561.3,2560.9,3.898]
[1748233910497,1.11962924,2561.6,2560.9,3.898]
[1748233910498,8.0,2561.4,2560.9,3.93704469]
[1748233910685,8.0,2561.4,2560.9,3.898]
[1748233911019,8.0,2561.4,2560.9,3.93704469]
[1748233911315,0.36365347,2561.3,2560.9,3.93704469]
[1748233911479,0.36365347,2561.3,2560.9,3.898]
[1748233912094,8.0,2561.4,2560.9,3.898]
[1748233912386,8.57534646,2561.4,2560.9,3.898]
[1748233913331,3.01282006,2561.6,2561.0,0.781]
[1748233913818,3.01282006,2561.4,2561.0,0.781]
[1748233914028,3.79782006,2561.4,2560.9,3.898]
[1748233915324,0.36374096,2561.3,2560.9,3.898]
[1748233916222,3.79782006,2561.4,2561.0,3.898]
[1748233916223,3.01282006,2561.2,2561.0,3.898]
[1748233916430,3.01282006,2561.2,2561.1,3.898]
[1748233917506,3.37665879,2561.2,2561.1,3.898]
[1748233919530,0.36383873,2561.2,2561.1,3.898]
[1748233922129,0.36383873,2561.2,2561.1,4.6803]
[1748233922957,3.01282006,2561.6,2561.1,4.6803]
[1748233923959,0.36392195,2561.5,2561.1,4.6803]
[1748233924158,0.36392195,2561.5,2561.1,4.71934139]
[1748233924349,0.36392195,2561.5,2561.1,4.6803]
[1748233924553,3.01282006,2561.6,2561.1,4.6803]
[1748233925357,3.01282006,2561.6,2561.1,4.71934142]
[1748233926061,3.01282006,2561.6,2561.1,4.6803]
[1748233927363,0.36389558,2561.5,2561.1,4.6803]
[1748233927950,0.36389558,2561.5,2561.2,0.8091]
[1748233928164,0.36389558,2561.5,2561.1,3.898]
[1748233928165,3.37665379,2561.8,2561.3,0.03903822]
[1748233928369,3.01282006,2561.8,2561.4,0.8091]
[1748233928679,3.01282006,2561.8,2561.5,3.898]
[1748233929376,0.3639783,2561.7,2561.5,3.898]
[1748233930448,3.01282006,2561.8,2561.5,3.898]
[1748233931583,0.0796584,2561.9,2561.5,4.36871]
[1748233931734,3.01282006,2561.8,2561.5,3.898]
[1748233932635,3.01282006,2561.8,2561.7,0.8]
[1748233933280,3.37670796,2561.8,2561.7,0.8]
[1748233934587,3.37670796,2561.8,2561.7,4.872]
[1748233942668,3.01282006,2561.8,2561.7,4.872]
[1748233943383,0.0796584,2561.9,2561.7,4.872]
[1748233943670,0.0796584,2561.9,2561.8,0.8145]
[1748233948769,8.0796584,2561.9,2561.8,0.8145]
[1748233949168,0.0796584,2561.9,2561.8,0.8145]
[1748233949352,0.0796584,2561.9,2561.8,0.85352658]
[1748233949555,0.0796584,2561.9,2561.8,0.8145]
[1748233960833,0.0796584,2561.9,2561.8,8.7805]
[1748233961193,0.0796584,2561.9,2561.8,4.07]
[1748233961440,0.0796584,2561.9,2561.8,7.966]
[1748233961726,8.46892625,2561.9,2561.8,8.43162663]
[1748233962633,8.83236172,2561.9,2561.8,8.43162663]
[1748233963235,8.83236172,2561.9,2561.8,0.46562663]
[1748233963414,8.83236172,2561.9,2561.8,8.43162663]
[1748233963621,9.65426172,2561.9,2561.8,7.966]
[1748233963993,9.65426172,2561.9,2561.7,0.8]
[1748233964425,9.65426172,2561.9,2561.8,7.966]
[1748233966632,9.65426172,2561.9,2561.7,0.8]
[1748233966944,12.27952824,2561.8,2561.7,4.87]
[1748233967155,12.27952824,2561.8,2561.7,8.766]
[1748233973274,11.01282006,2561.8,2561.7,8.766]
[1748233974761,11.01282006,2561.8,2561.7,0.8]
[1748233974962,11.01282006,2561.8,2561.7,8.768]
[1748233976560,9.01282006,2561.8,2561.7,8.768]
[1748233978567,0.0796584,2561.9,2561.7,9.5731]
[1748233980840,0.0796584,2561.9,2561.8,0.0390292]
[1748233981236,0.0796584,2561.9,2561.7,9.5731]
[1748233982717,0.0796584,2561.9,2561.7,0.8]
[1748233982901,3.09247846,2561.9,2561.8,4.07]
[1748233983098,3.09247846,2561.9,2561.8,7.967]
[1748233983474,0.0796584,2561.9,2561.8,7.967]
[1748233986377,0.0796584,2561.9,2561.7,0.8]
[1748233986577,3.92567846,2561.9,2561.7,0.8]
[1748233986912,11.92567846,2561.9,2561.7,0.8]
[1748233987131,11.92567846,2561.9,2561.8,7.965]
[1748233987519,0.0796584,2561.9,2561.8,7.965]
[1748233987720,0.0796584,2561.9,2561.8,8.7888]
[1748233996504,0.0796584,2561.9,2561.8,9.40210314]
[1748233997650,0.0796584,2561.9,2561.8,19.01432635]
[1748233998412,0.0796584,2561.9,2561.8,18.40102321]
[1748234000647,0.0796584,2561.9,2561.8,18.79123994]
[1748234001507,0.0796584,2561.9,2561.8,24.94123994]
[1748234003571,0.0796584,2561.9,2561.8,33.35623994]
[1748234004704,0.0796584,2561.9,2561.8,25.39123994]
[1748234004992,0.0796584,2561.9,2561.8,31.3518]
[1748234005203,0.0796584,2561.9,2561.8,23.3518]
[1748234005350,0.0796584,2561.9,2561.8,12.483]
[1748234005703,0.0796584,2561.9,2561.8,16.99723462]
[1748234005704,0.8890584,2561.9,2561.8,16.99723462]
[1748234006711,0.0796584,2561.9,2561.8,16.99723462]
[1748234006987,0.0796584,2561.9,2561.8,16.378]
[1748234010973,0.0796584,2561.9,2561.7,0.8]
[1748234011304,0.0796584,2561.9,2561.8,7.965]
[1748234012386,0.0796584,2561.9,2561.7,0.8]
[1748234012641,0.0796584,2561.9,2561.8,7.965]
[1748234014229,0.0796584,2561.9,2561.7,0.8]
[1748234014415,0.0796584,2561.9,2561.8,7.965]
[1748234014998,0.0796584,2561.9,2561.8,7.98]
[1748234015199,0.0796584,2561.9,2561.7,0.8]
[1748234015448,0.0796584,2561.9,2561.8,7.98]
[1748234015622,0.0796584,2561.9,2561.7,0.8]
[1748234015788,3.87987846,2561.9,2561.7,0.8]
[1748234015994,1.17538785,2561.8,2561.7,0.8]
[1748234016230,1.17538785,2561.8,2561.7,8.78]
[1748234016535,0.7874,2561.8,2561.7,8.78]
[1748234017392,0.0796584,2561.9,2561.7,8.78]
[1748234017893,0.0796584,2561.9,2561.8,0.7973]
[1748234019524,0.0796584,2561.9,2561.8,8.7773]
[1748234021033,0.0796584,2561.9,2561.8,9.24192008]
[1748234022333,0.0796584,2561.9,2561.8,1.26192008]
[1748234022537,0.0796584,2561.9,2561.8,0.46462008]
[1748234022838,0.0796584,2561.9,2561.8,8.44462008]
[1748234023346,0.0796584,2561.9,2561.7,1.26462008]
[1748234023632,0.0796584,2561.9,2561.8,7.98]
[1748234023836,0.0796584,2561.9,2561.7,1.26462008]
[1748234023996,0.0796584,2561.9,2561.8,7.98]
[1748234025014,0.0796584,2561.9,2561.7,1.26462008]
[1748234025320,0.8287,2561.8,2561.7,0.8]
[1748234025523,0.8287,2561.8,2561.7,8.78]
[1748234027659,0.0796584,2561.9,2561.7,8.78]
[1748234027970,0.0796584,2561.9,2561.8,0.03903047]
[1748234028763,0.0796584,2561.9,2561.7,8.78]
[1748234033086,0.0796584,2561.9,2561.8,7.98]
[1748234038796,0.0796584,2561.9,2561.8,8.44462008]
[1748234040298,0.0796584,2561.9,2561.8,4.54862008]
[1748234040511,0.8491584,2561.9,2561.8,8.44462008]
[1748234041169,0.8491584,2561.9,2561.8,0.46462008]
[1748234041380,0.8491584,2561.9,2561.8,7.98]
[1748234041996,0.8491584,2561.9,2561.7,0.8]
[1748234042224,4.22871791,2561.8,2561.7,4.884]
[1748234042522,12.22871791,2561.8,2561.7,0.8]
[1748234042739,16.13222325,2561.8,2561.7,4.696]
[1748234043051,16.49649349,2561.8,2561.7,4.696]
[1748234043207,16.86078867,2561.8,2561.7,4.696]
[1748234043532,16.86078867,2561.8,2561.7,3.896]
[1748234043686,12.95728333,2561.8,2561.7,3.896]
[1748234043892,12.95711706,2561.8,2561.7,3.896]
[1748234048243,12.59298815,2561.8,2561.7,3.896]
[1748234048743,12.59298815,2561.8,2561.1,8.415]
[1748234048943,12.59298815,2561.8,2561.2,7.996]
[1748234048944,0.36427024,2561.7,2561.2,7.996]
[1748234049447,0.36427024,2561.7,2561.3,0.8]
[1748234050006,12.22871791,2561.8,2561.3,0.8]
[1748234050206,12.22871791,2561.8,2561.2,7.996]
[1748234052156,0.3636907,2561.7,2561.2,7.996]
[1748234053145,8.8297,2561.8,2561.2,7.996]
[1748234053348,0.8297,2561.8,2561.3,0.7867]
[1748234053647,0.0796584,2561.9,2561.3,0.7867]
[1748234054351,0.0796584,2561.9,2561.4,0.46462008]
[1748234054551,0.0796584,2561.9,2561.5,4.697]
[1748234055610,0.0796584,2561.9,2561.5,5.16162008]
[1748234055940,0.0796584,2561.9,2561.6,0.8278]
[1748234063169,0.7848,2561.8,2561.5,0.8]
[1748234063469,0.7848,2561.8,2561.6,7.996]
[1748234065053,0.7848,2561.8,2561.5,0.8]
[1748234065258,0.7848,2561.8,2561.6,7.994]
[1748234065445,0.7848,2561.8,2561.5,0.8]
[1748234065643,0.7848,2561.8,2561.6,7.994]
[1748234065973,0.0796584,2561.9,2561.6,7.994]
[1748234066738,0.0796584,2561.9,2561.7,7.994]
[1748234066941,0.0796584,2561.9,2561.8,7.994]
[1748234074296,0.0796584,2561.9,2561.5,0.8]
[1748234074297,3.09247846,2561.9,2561.5,0.8]
[1748234074467,3.01282006,2561.6,2561.5,0.8]
[1748234074652,11.76802006,2561.6,2561.5,4.696]
[1748234075051,12.13215939,2561.6,2561.5,3.896]
[1748234076856,14.47215939,2561.6,2561.5,3.896]
[1748234077057,8.0,2561.5,2560.8,2.42359447]
[1748234077388,3.01282006,2561.4,2561.2,7.976]
[1748234080198,0.7552,2561.6,2561.2,7.976]
[1748234080366,0.36407257,2561.5,2561.2,7.976]
[1748234081212,8.7552,2561.6,2561.2,7.976]
[1748234082906,0.36400595,2561.5,2561.2,7.976]
[1748234083886,8.7552,2561.6,2561.2,7.976]
[1748234084401,9.97057679,2561.6,2561.2,7.976]
[1748234086732,3.01282006,2561.3,2560.8,0.46462008]
[1748234087025,3.01282006,2561.3,2561.2,4.079]
[1748234087254,3.01282006,2561.3,2561.2,7.976]
[1748234087875,0.7937,2561.5,2561.2,7.976]
[1748234092885,0.9086584,2561.9,2561.2,7.976]
[1748234093091,0.9086584,2561.9,2561.3,0.8137]
[1748234093305,8.9086584,2561.9,2561.3,0.8137]
[1748234093615,0.36399452,2561.8,2561.3,0.8137]
[1748234094579,0.0796584,2561.9,2561.5,0.7908]
[1748234094818,0.0796584,2561.9,2561.7,0.7908]
[1748234094996,0.0796584,2561.9,2561.8,3.897]
[1748234096235,0.0796584,2561.9,2561.8,4.6878]
[1748234096935,0.0796584,2561.9,2561.8,5.15242008]
[1748234097538,0.0796584,2561.9,2561.8,5.95242008]
[1748234098240,0.0796584,2561.9,2561.8,15.04662394]
[1748234098442,1.97285625,2562.7,2562.1,0.55]
[1748234098641,0.1,2562.9,2562.3,0.8227]
[1748234099245,0.1,2562.9,2562.4,0.55]
[1748234099544,0.1,2562.9,2562.5,0.55]
[1748234099844,0.1,2562.9,2562.7,0.8202]
[1748234100920,0.1,2562.9,2562.8,7.974]
[1748234106212,0.1,2562.9,2562.8,8.7523]
[1748234106747,0.1,2562.9,2562.8,7.974]
[1748234108346,0.1,2562.9,2562.2,0.8028]
[1748234108347,0.9142,2562.9,2562.2,0.8028]
[1748234108549,8.9142,2562.9,2562.3,8.001]
[1748234108756,10.10690201,2562.9,2562.3,8.001]
[1748234108950,10.10690201,2562.9,2562.2,0.8028]
[1748234109118,10.10690201,2562.9,2562.3,8.001]
[1748234109446,10.10690201,2562.9,2562.4,8.001]
[1748234109651,3.01282006,2562.8,2562.4,4.106]
[1748234109851,1.31197221,2562.7,2562.5,3.895]
[1748234110016,3.01282006,2562.8,2562.6,8.001]
[1748234111140,3.01282006,2562.8,2562.1,8.418]
[1748234111141,11.01282006,2562.8,2562.7,8.001]
[1748234112430,8.0,2562.8,2562.7,8.001]
[1748234113330,11.01282006,2562.8,2562.7,8.001]
[1748234113532,8.7693,2562.7,2562.5,4.106]
[1748234113733,2.08127221,2562.7,2562.6,3.895]
[1748234113974,0.7693,2562.7,2562.6,3.895]
[1748234114983,8.7693,2562.7,2562.6,3.895]
[1748234115475,8.7693,2562.7,2562.6,4.695]
[1748234116668,8.7693,2562.7,2562.6,0.8]
[1748234116819,8.7693,2562.7,2562.6,4.695]
[1748234117126,10.07678221,2562.7,2562.6,4.695]
[1748234117727,0.1,2562.9,2562.6,4.695]
[1748234118134,0.1,2562.9,2562.6,0.8]
[1748234118334,0.1,2562.9,2562.7,8.001]
[1748234118522,0.1,2562.9,2562.6,0.8]
[1748234118920,0.1,2562.9,2562.7,8.002]
[1748234119146,0.80158464,2562.9,2562.6,0.8]
[1748234119347,0.80158464,2562.9,2562.7,8.002]
[1748234120057,0.1,2562.9,2562.7,8.002]
[1748234121160,0.1,2562.9,2562.8,0.80371973]
[1748234121336,0.1,2562.9,2562.8,0.7647]
[1748234125155,0.1,2562.9,2562.8,1.22932008]
[1748234127971,0.1,2562.9,2562.8,9.22932008]
[1748234128345,0.1,2562.9,2562.8,1.22932008]
[1748234128545,0.1,2562.9,2562.8,9.22932008]
[1748234128773,0.1,2562.9,2562.8,8.7647]
[1748234130872,0.1,2562.9,2562.8,0.7647]
[1748234131072,0.1,2562.9,2562.8,4.105]
[1748234131374,0.1,2562.9,2562.8,8.0]
[1748234134380,0.1,2562.9,2562.6,0.8]
[1748234134583,0.1,2562.9,2562.8,8.0]
[1748234135081,0.1,2562.9,2562.8,0.7928]
[1748234135294,0.1,2562.9,2562.6,1.5928]
[1748234135497,0.1,2562.9,2562.8,8.0]
[1748234141662,0.1,2562.9,2562.7,0.20574201]
[1748234141867,0.1,2562.9,2562.8,8.0]
[1748234142078,0.1,2562.9,2562.8,4.105]
[1748234142292,0.1,2562.9,2562.8,8.0]
[1748234142595,0.1,2562.9,2562.8,4.104]
[1748234142799,0.1,2562.9,2562.6,1.26462008]
[1748234142953,0.8099,2562.8,2562.6,5.36862008]
[1748234143290,0.8099,2562.8,2562.7,3.894]
[1748234143492,0.78246315,2562.8,2562.7,3.894]
[1748234143648,0.8099,2562.8,2562.7,3.894]
[1748234144086,0.8099,2562.8,2562.1,8.418]
[1748234144275,0.8099,2562.8,2562.2,7.998]
[1748234145452,3.01282006,2562.7,2562.3,3.894]
[1748234145748,0.7693,2562.6,2562.3,3.894]
[1748234145946,1.13301696,2562.6,2562.3,3.894]
[1748234146152,1.54760066,2562.6,2562.3,3.894]
[1748234146390,1.1838837,2562.6,2562.3,3.894]
[1748234147348,0.7693,2562.6,2562.3,3.894]
[1748234147905,0.7693,2562.6,2562.4,8.0]
[1748234148075,0.7903,2562.8,2562.4,8.0]
[1748234148607,0.7903,2562.8,2562.5,8.0]
[1748234148820,3.80312006,2562.8,2562.5,8.0]
[1748234148980,0.39031201,2562.7,2562.5,8.0]
[1748234149914,0.39031201,2562.7,2562.6,3.895]
[1748234150223,0.39031201,2562.7,2562.1,8.418]
[1748234150394,0.36358102,2562.7,2562.1,8.418]
[1748234150936,0.36358102,2562.7,2562.2,8.0]
[1748234151299,0.7903,2562.8,2562.3,8.0]
[1748234151801,0.7903,2562.8,2562.1,8.418]
[1748234152001,0.7903,2562.8,2562.2,8.0]
[1748234152206,1.25649119,2562.8,2562.2,8.0]
[1748234152404,1.25649119,2562.8,2562.3,8.0]
[1748234153415,0.7903,2562.8,2562.3,8.0]
[1748234153604,0.7903,2562.8,2562.5,0.8]
[1748234157141,0.7903,2562.8,2562.6,3.895]
[1748234161244,0.7903,2562.8,2562.5,4.905]
[1748234161551,0.7903,2562.8,2562.7,3.895]
[1748234161725,1.18061201,2562.8,2562.5,4.905]
[1748234161920,1.54428132,2562.8,2562.6,3.895]
[1748234162478,1.54428132,2562.8,2562.7,3.895]
[1748234162967,4.55710138,2562.8,2562.5,4.905]
[1748234163249,0.8054,2562.7,2562.6,3.895]
[1748234163548,2.07262014,2562.7,2562.6,3.895]
[1748234163761,2.43628945,2562.7,2562.6,3.895]
[1748234167250,2.43628945,2562.7,2562.5,0.8]
[1748234167430,2.43628945,2562.7,2562.6,3.895]
[1748234167983,2.43628945,2562.7,2562.5,0.8]
[1748234168188,0.28266015,2562.6,2562.5,4.906]
[1748234168384,0.28266015,2562.6,2562.5,8.801]
[1748234169190,8.64632946,2562.6,2562.5,8.801]
[1748234169489,8.64632946,2562.6,2562.5,4.906]
[1748234169783,8.64632946,2562.6,2562.5,8.801]
[1748234172295,9.01108333,2562.6,2562.5,8.801]
[1748234172848,12.02390339,2562.6,2562.5,4.906]
[1748234173049,12.02390339,2562.6,2562.5,4.106]
[1748234173050,16.70349013,2562.6,2562.5,4.106]
[1748234173255,0.796,2562.4,2561.9,8.44362008]
[1748234173458,14.14882006,2562.0,2561.9,8.44362008]
[1748234173849,11.50075387,2562.0,2561.9,8.44362008]
[1748234174051,8.36475387,2562.0,2561.9,8.44362008]
[1748234174263,8.0,2562.0,2561.9,7.979]
[1748234174494,8.36366931,2562.0,2561.9,7.979]
[1748234178120,8.0,2562.0,2561.9,7.979]
[1748234178848,8.0,2562.0,2561.9,8.779]
[1748234182212,8.0,2562.0,2561.9,4.883]
[1748234182414,12.59942006,2562.0,2561.9,8.779]
[1748234182624,8.0,2561.9,2561.4,8.415]
[1748234182944,4.9633599,2562.0,2561.5,7.98]
[1748234183641,0.36393984,2561.9,2561.5,7.98]
[1748234184431,0.36393984,2561.9,2561.7,0.8]
[1748234184626,0.77429474,2561.9,2561.8,3.896]
[1748234184807,0.4103549,2561.9,2561.8,3.896]
[1748234186625,0.77417308,2561.9,2561.8,3.896]
[1748234187624,3.11417308,2561.9,2561.8,3.896]
[1748234189062,3.11417308,2561.9,2561.7,0.8]
[1748234189211,3.11417308,2561.9,2561.8,3.897]
[1748234193235,2.70381818,2561.9,2561.8,3.897]
[1748234194473,0.36381818,2561.9,2561.8,3.897]
[1748234195246,8.36381818,2562.2,2561.8,3.897]
[1748234195572,0.36381818,2562.2,2561.9,0.7648]
[1748234196252,8.0,2562.2,2561.9,0.7648]
[1748234196427,8.0,2562.2,2561.9,0.7963]
[1748234197439,10.07,2562.3,2561.9,0.7963]
[1748234199073,9.16850282,2562.7,2561.9,0.7963]
[1748234199366,0.36407328,2562.6,2561.9,0.7963]
[1748234200678,0.36407328,2562.5,2561.9,0.7963]
[1748234201189,8.0,2561.9,2561.8,3.896]
[1748234201880,0.7601,2562.0,2561.8,3.896]
[1748234202236,0.36407328,2561.9,2561.8,3.896]
[1748234212723,0.36407328,2561.9,2561.8,7.974]
[1748234223210,0.36407328,2561.9,2561.8,7.975]
[1748234224898,0.36407328,2561.9,2561.7,0.8]
[1748234225099,0.36407328,2561.9,2561.8,7.974]
[1748234227478,8.36407328,2561.9,2561.8,7.974]
[1748234229419,0.36407328,2561.9,2561.8,4.8811]
[1748234229622,9.12177328,2561.9,2561.8,4.077]
[1748234229785,9.12177328,2561.9,2561.8,7.974]
[1748234230117,9.48657259,2561.9,2561.8,7.974]
[1748234230621,0.72887259,2561.9,2561.8,7.974]
[1748234232189,1.67752985,2561.9,2561.8,7.974]
[1748234233229,0.36407328,2561.9,2561.8,7.974]
[1748234234814,0.21898524,2562.4,2561.8,7.974]
[1748234235225,0.3649019,2562.3,2561.8,7.974]
[1748234235386,0.3649019,2562.2,2561.8,7.974]
[1748234235892,0.36485768,2562.1,2561.8,7.974]
[1748234236605,0.36485768,2562.0,2561.8,7.974]
[1748234236925,0.36485768,2562.0,2561.9,0.8033]
[1748234237102,0.36485768,2562.0,2561.9,0.84232695]
[1748234237306,0.36485768,2562.0,2561.9,0.8033]
[1748234238242,0.36483299,2562.5,2561.9,0.8033]
[1748234238406,8.21890109,2562.6,2561.9,0.8033]
[1748234238804,0.36460094,2562.5,2561.9,0.8033]
[1748234239212,3.01282006,2562.5,2561.9,0.8033]
[1748234239411,9.12815776,2562.4,2562.0,7.972]
[1748234239649,3.01282006,2562.3,2562.1,3.896]
[1748234239963,8.41409778,2562.2,2562.0,4.076]
[1748234240249,8.41409778,2562.2,2562.1,3.896]
[1748234240250,8.77865554,2562.2,2562.1,3.896]
[1748234241500,1.14323488,2562.2,2562.1,3.896]
[1748234241846,0.7291371,2562.2,2562.1,3.896]
[1748234242001,0.36455776,2562.2,2562.1,3.896]
[1748234244118,0.36455776,2562.2,2561.9,4.076]
[1748234244336,8.36455776,2562.2,2562.0,3.896]
[1748234244650,0.36455776,2562.1,2562.0,3.896]
[1748234246425,0.36455776,2562.1,2562.0,4.696]
[1748234253151,0.36455776,2562.1,2562.0,5.4465]
[1748234253533,0.21872869,2562.5,2562.0,5.4465]
[1748234253710,0.36454927,2562.4,2562.0,5.4465]
[1748234253913,0.36454927,2562.4,2562.0,4.696]
[1748234254357,4.71026391,2562.5,2562.0,4.696]
[1748234254936,0.36456159,2562.4,2562.0,4.696]
[1748234255472,0.36457929,2562.3,2562.0,4.696]
[1748234255681,0.821,2562.2,2562.0,0.8]
[1748234255978,0.36456159,2562.1,2562.0,4.876]
[1748234256143,0.36456159,2562.1,2562.0,8.772]
[1748234257986,8.36456159,2562.1,2562.0,8.772]
[1748234263889,8.36456159,2562.1,2562.0,4.696]
[1748234265905,9.55450652,2562.1,2562.0,4.696]
[1748234266671,8.36456159,2562.1,2562.0,4.696]
[1748234268580,8.72960692,2562.1,2562.0,4.696]
[1748234268895,0.72960692,2562.1,2562.0,5.5251]
[1748234269117,0.36456159,2562.1,2562.0,5.5251]
[1748234269287,0.2189937,2562.5,2562.0,5.5251]
[1748234269909,0.36504533,2562.4,2562.0,5.5251]
[1748234270112,0.36498709,2562.3,2562.0,5.5251]
[1748234271095,0.36498709,2562.3,2562.0,1.6291]
[1748234271303,0.36498709,2562.2,2562.1,7.972]
[1748234285020,8.0,2562.5,2562.1,7.972]
[1748234285797,8.0,2562.5,2562.2,3.896]
[1748234286141,1.48784538,2562.4,2562.2,3.896]
[1748234286457,0.36468137,2562.4,2562.2,3.896]
[1748234287000,0.36468137,2562.3,2562.2,3.896]
[1748234293462,0.36468137,2562.3,2562.1,4.076]
[1748234293758,0.36468137,2562.3,2562.2,3.896]
[1748234295564,0.36468137,2562.3,2562.0,0.8]
[1748234295735,3.01282006,2562.2,2562.1,3.896]
[1748234295934,3.4275502,2562.2,2562.1,3.896]
[1748234296136,3.79246586,2562.2,2562.1,3.896]
[1748234296336,4.15714723,2562.2,2562.1,3.896]
[1748234297249,1.14432717,2562.2,2562.1,3.896]
[1748234299595,0.72959703,2562.2,2562.1,3.896]
[1748234299951,0.36468137,2562.2,2562.1,3.896]
[1748234302591,0.36468137,2562.2,2562.1,4.696]
[1748234305993,0.36468137,2562.2,2562.1,8.771]
[1748234306292,0.72957858,2562.2,2562.1,8.771]
[1748234306469,1.20313212,2562.2,2562.1,8.771]
[1748234308822,1.20313212,2562.2,2562.1,0.8]
[1748234309114,1.20313212,2562.2,2562.1,4.696]
[1748234311917,1.20313212,2562.2,2562.1,3.896]
[1748234316612,1.20313212,2562.2,2561.8,4.075]
[1748234316909,1.20313212,2562.2,2562.1,3.896]
[1748234317111,0.83823491,2562.2,2562.1,3.896]
[1748234318111,1.20291287,2562.2,2562.1,3.896]
[1748234318413,9.20291287,2562.2,2562.1,3.896]
[1748234318615,9.2029146,2562.2,2562.1,3.896]
[1748234320933,8.72936106,2562.2,2562.1,3.896]
[1748234322522,0.72936106,2562.2,2562.1,3.896]
[1748234324496,0.36468137,2562.2,2562.1,3.896]
[1748234325223,0.36468137,2562.2,2562.0,4.874]
[1748234325383,0.36468137,2562.2,2562.1,3.896]
[1748234325805,3.37750143,2562.2,2562.1,3.896]
[1748234326194,3.74226177,2562.2,2562.1,3.896]
[1748234327423,4.13837333,2562.2,2562.0,0.8]
[1748234327629,4.95877333,2562.2,2562.1,3.896]
[1748234328823,7.29777333,2562.2,2562.1,3.896]
[1748234329125,4.95877333,2562.2,2562.1,3.896]
[1748234329811,4.13837333,2562.2,2562.1,3.896]
[1748234330018,3.74226177,2562.2,2562.1,3.896]